bitfinex/quotes_ETHUSD_20250726
["timestamp","ask_amount","ask_price","bid_price","bid_amount"]
[1753544947788,0.4538,3738.2,3738.1,2.67515582]
[1753544948117,0.9287,3738.2,3738.1,2.67515582]
[1753544948321,0.4538,3738.2,3738.1,2.67515582]
[1753544948610,0.1336,3738.5,3738.1,2.67515582]
[1753544948611,0.55,3738.5,3738.2,2.67504651]
[1753544948815,0.9287,3738.4,3738.1,0.1336]
[1753544949014,0.9287,3738.3,3738.1,0.1336]
[1753544949190,0.55,3738.5,3738.2,2.67506836]
[1753544949512,0.4749,3738.4,3738.1,0.1336]
[1753544949810,0.9287,3738.4,3738.1,0.1336]
[1753544950009,0.4749,3738.3,3738.2,2.67508426]
[1753544950213,0.9287,3738.3,3738.2,2.67508426]
[1753544950425,0.4538,3738.3,3738.2,2.67508426]
[1753544950578,0.4538,3738.3,3738.1,0.1336]
[1753544950579,0.9287,3738.3,3738.1,0.1336]
[1753544950779,0.9287,3738.3,3737.7,0.1336]
[1753544950780,1.95660855,3738.2,3737.7,0.1336]
[1753544951019,0.9287,3738.1,3737.7,0.1336]
[1753544951488,0.4749,3738.1,3737.7,0.1336]
[1753544951817,0.4538,3738.1,3737.7,0.1336]
[1753544952117,0.4538,3738.0,3737.7,0.1336]
[1753544952618,0.466,3737.9,3737.7,0.1336]
[1753544953204,0.4709,3738.1,3737.7,0.1336]
[1753544953205,0.466,3738.1,3737.8,2.67533728]
[1753544953383,1.434,3738.2,3737.7,0.1336]
[1753544953384,0.7504,3738.2,3737.7,0.1336]
[1753544953583,1.2164,3738.2,3737.9,0.1336]
[1753544953807,0.466,3738.1,3737.9,0.1336]
[1753544954409,0.466,3738.0,3737.9,0.1336]
[1753544955421,0.7955,3738.4,3737.9,2.80888322]
[1753544955619,0.466,3738.3,3737.9,0.1336]
[1753544955825,0.9369,3738.3,3737.9,2.8088962]
[1753544956021,0.466,3738.2,3737.9,0.1336]
[1753544956226,0.466,3738.2,3737.9,2.80886188]
[1753544956523,0.466,3738.1,3737.9,0.1336]
[1753544956725,0.466,3738.0,3737.9,0.1336]
[1753544956926,0.9369,3738.0,3737.9,0.1336]
[1753544957426,0.9369,3738.0,3737.7,2.67541926]
[1753544957625,0.55,3738.1,3737.8,2.67534421]
[1753544957793,0.466,3738.0,3737.7,2.80902391]
[1753544958425,0.1336,3738.2,3737.7,0.1336]
[1753544958625,0.55,3738.3,3737.9,2.67527838]
[1753544958831,0.55,3738.3,3737.9,0.1336]
[1753544959020,0.466,3738.2,3737.8,0.1336]
[1753544959197,0.466,3738.2,3737.4,2.438]
[1753544959198,0.55,3738.1,3737.4,2.438]
[1753544959534,0.5996,3738.0,3737.6,2.67551369]
[1753544959694,0.5996,3738.0,3737.7,2.67544211]
[1753544959900,0.466,3737.9,3737.7,2.67544211]
[1753544961362,0.466,3737.9,3737.8,2.67537053]
[1753544962218,0.1336,3738.0,3737.8,2.67537053]
[1753544962219,0.6836,3738.0,3737.9,2.67529896]
[1753544962626,0.6836,3738.0,3737.8,2.67536153]
[1753544963130,0.6836,3738.0,3737.9,2.67529896]
[1753544963308,0.55,3737.9,3736.7,0.19633686]
[1753544963633,0.55,3737.6,3736.8,3.61668649]
[1753544963814,0.9369,3737.5,3736.8,3.61668649]
[1753544964022,1.2898,3737.4,3736.7,5.12015399]
[1753544964236,1.2947,3737.4,3736.9,2.67595626]
[1753544964448,0.466,3737.3,3736.9,2.67595626]
[1753544964602,0.9369,3737.3,3736.9,0.86177103]
[1753544964809,0.8238,3737.4,3736.8,5.1200755]
[1753544965008,0.9369,3737.3,3736.7,2.67614927]
[1753544965211,1.016,3737.2,3736.8,2.67603292]
[1753544965544,0.466,3737.1,3736.8,2.67603292]
[1753544965750,0.55,3737.0,3736.6,0.001]
[1753544965903,0.55,3737.0,3736.7,2.443]
[1753544966110,1.016,3737.0,3736.7,2.443]
[1753544966408,1.016,3737.0,3736.7,5.11913782]
[1753544966608,1.016,3737.0,3736.6,2.67721589]
[1753544966845,0.9369,3736.9,3736.6,2.444]
[1753544967145,0.466,3736.9,3736.7,2.67615504]
[1753544967449,0.55,3737.2,3736.6,2.445]
[1753544967625,0.8238,3737.4,3737.2,2.67574574]
[1753544968010,1.3738,3737.4,3737.3,2.67572846]
[1753544968230,0.8238,3737.4,3737.3,2.67572846]
[1753544968564,0.466,3737.7,3737.4,2.6756446]
[1753544968565,0.55,3737.5,3737.4,2.6756446]
[1753544968868,1.016,3737.5,3737.4,2.6756446]
[1753544969379,1.2343,3737.9,3737.4,2.6756446]
[1753544969528,0.55,3737.8,3737.6,2.67549907]
[1753544969865,0.55,3737.8,3737.5,2.6755757]
[1753544970163,0.466,3737.7,3737.5,2.6755757]
[1753544970863,4.2343,3737.9,3737.7,2.67544211]
[1753544971056,0.55,3737.8,3737.7,2.67544211]
[1753544971359,1.016,3737.8,3737.7,2.67544211]
[1753544971563,0.55,3737.8,3737.7,2.67544211]
[1753544971777,0.55,3738.1,3737.7,1.47569911]
[1753544971989,0.55,3738.1,3737.7,0.9406]
[1753544972432,1.016,3738.1,3737.9,2.67528051]
[1753544972766,1.016,3738.1,3737.8,2.67535414]
[1753544973289,1.0209,3738.1,3737.7,2.67543264]
[1753544973492,0.5996,3738.0,3737.5,2.8091556]
[1753544973774,0.5996,3738.0,3737.8,2.67535883]
[1753544974076,0.466,3737.9,3737.7,2.67543258]
[1753544974578,0.466,3737.9,3737.8,2.67537053]
[1753544975258,0.6836,3738.0,3737.9,2.67529896]
[1753544975459,0.7683,3738.2,3738.1,2.67515582]
[1753544975660,0.55,3738.2,3738.1,2.67515582]
[1753544975866,0.55,3738.2,3738.0,2.67521239]
[1753544976067,0.466,3738.1,3738.0,2.67521239]
[1753544976661,0.55,3738.0,3737.6,2.67550212]
[1753544976968,0.466,3737.9,3737.7,2.6754303]
[1753544977275,0.466,3737.8,3737.7,2.6754303]
[1753544977475,0.466,3737.8,3737.6,2.67549352]
[1753544977675,1.231,3737.7,3737.5,2.80917186]
[1753544977980,1.016,3737.6,3737.5,2.67557186]
[1753544978176,1.4869,3737.6,3737.5,2.67557186]
[1753544978478,1.016,3737.6,3737.5,2.67557186]
[1753544978973,0.55,3737.6,3737.5,2.67557186]
[1753544984078,1.0032,3737.6,3737.2,0.1336]
[1753544984285,0.55,3737.4,3737.2,2.67579229]
[1753544984481,0.6836,3737.4,3737.3,2.67572846]
[1753544986076,0.6836,3737.4,3737.3,2.62572846]
[1753544988000,0.6836,3737.4,3737.3,2.62672846]
[1753544988599,0.6836,3737.4,3737.3,3.42372846]
[1753544988897,0.6836,3737.4,3737.3,3.54142846]
[1753544989202,0.55,3737.8,3737.6,2.67544532]
[1753544989502,0.6836,3737.7,3737.6,2.67544532]
[1753544990305,3.8056,3738.2,3738.0,2.67519833]
[1753544990607,4.3556,3738.2,3738.1,2.67515582]
[1753544990805,4.4892,3738.2,3738.1,2.67515582]
[1753544991368,0.1336,3738.2,3738.1,2.67515582]
[1753544991596,2.44,3738.3,3738.1,3.58985582]
[1753544991909,2.44,3738.3,3738.2,2.67508426]
[1753544992267,0.1336,3738.4,3738.3,2.6750127]
[1753544992464,0.1336,3738.4,3738.3,3.1478127]
[1753544992465,0.6836,3738.4,3738.3,3.1478127]
[1753544992690,0.55,3738.4,3738.3,3.5897127]
[1753544992876,0.55,3738.4,3738.3,3.1478127]
[1753544993091,0.55,3738.4,3738.2,2.67506711]
[1753544993300,1.0032,3738.4,3738.2,2.67506711]
[1753544993696,1.0032,3738.4,3738.3,2.6750127]
[1753544993874,0.55,3738.4,3738.3,2.6750127]
[1753544994074,0.55,3738.4,3738.0,3.14801366]
[1753544994307,1.0032,3738.4,3738.1,2.67515506]
[1753544994616,0.4532,3738.3,3738.1,2.67515506]
[1753544995112,0.4532,3738.3,3738.2,2.67508426]
[1753544995570,0.4532,3738.3,3738.1,2.67513484]
[1753544995781,0.55,3738.4,3738.2,2.67501396]
[1753544995976,0.55,3738.4,3738.3,2.6750127]
[1753544996221,0.1336,3738.5,3738.4,2.67494115]
[1753544996430,0.6836,3738.7,3738.4,2.67494115]
[1753544996732,0.6836,3738.7,3738.4,3.14774115]
[1753544997236,0.55,3738.5,3738.1,0.1336]
[1753544997594,0.55,3738.5,3738.4,2.67494115]
[1753544998310,0.55,3738.6,3738.4,3.14774115]
[1753544999025,0.55,3738.6,3738.5,2.6748696]
[1753545000288,0.55,3738.6,3738.2,3.5897812]
[1753545000529,1.0032,3738.6,3738.2,0.9147]
[1753545000734,0.55,3738.4,3738.1,0.1336]
[1753545000896,0.55,3738.4,3738.0,2.67521453]
[1753545001097,0.55,3738.4,3738.3,2.6750127]
[1753545001711,0.55,3738.4,3738.0,3.14802022]
[1753545001712,0.55,3738.4,3738.2,2.67506274]
[1753545001907,1.0032,3738.4,3738.3,2.6750127]
[1753545002123,1.0032,3738.4,3738.0,3.14798514]
[1753545002297,1.0032,3738.4,3737.9,2.80889762]
[1753545002298,0.55,3738.4,3737.9,2.80889762]
[1753545002498,0.55,3738.4,3738.2,2.67508426]
[1753545002727,0.55,3738.4,3738.3,2.6750127]
[1753545002899,0.6836,3738.5,3738.4,2.67494115]
[1753545005449,0.1336,3738.5,3738.4,2.67494115]
[1753545005634,2.438,3738.7,3738.5,2.6748696]
[1753545005872,0.55,3738.8,3738.6,2.67472664]
[1753545006045,0.55,3738.8,3738.5,2.6748696]
[1753545006245,0.58680001,3738.9,3738.7,2.6747265]
[1753545006445,0.55,3738.8,3738.7,2.6747265]
[1753545008850,0.55,3738.8,3738.7,3.5894265]
[1753545009960,0.552,3738.8,3738.7,3.5894265]
[1753545010346,0.002,3738.8,3738.7,4.3617265]
[1753545010653,0.002,3738.8,3738.7,5.06538611]
[1753545010875,0.002,3738.8,3738.7,5.19898611]
[1753545012474,2.39000001,3739.5,3739.4,2.67422581]
[1753545012782,0.55,3739.6,3739.4,2.67422581]
[1753545012979,1.048,3739.6,3739.5,2.67415429]
[1753545013184,1.048,3739.6,3739.3,2.67429732]
[1753545013379,0.55,3739.4,3739.1,2.67442368]
[1753545013702,1.5152,3739.2,3739.0,5.11349288]
[1753545014111,1.048,3739.1,3739.0,5.11349288]
[1753545014402,1.048,3739.1,3738.9,2.67456902]
[1753545014608,1.048,3739.1,3738.9,5.11356902]
[1753545014984,1.048,3739.1,3739.0,2.6745119]
[1753545015505,0.55,3739.1,3739.0,2.6745119]
[1753545015701,0.55,3739.1,3738.9,5.11357247]
[1753545016069,0.55,3739.1,3739.0,2.6745119]
[1753545017908,0.55,3739.1,3738.9,5.11356173]
[1753545018306,0.55,3739.1,3739.0,2.6745119]
[1753545018815,0.55,3739.1,3739.0,3.6103119]
[1753545019190,0.8316,3740.1,3739.0,2.5938559]
[1753545019510,0.498,3740.0,3739.5,2.67408984]
[1753545019710,0.55,3739.9,3739.7,2.67400946]
[1753545019880,0.55,3740.0,3739.6,2.67406862]
[1753545020213,0.498,3739.9,3739.6,2.67406862]
[1753545021229,0.498,3739.9,3739.8,2.67393978]
[1753545021402,0.498,3739.9,3739.7,2.6740087]
[1753545021603,0.55,3740.0,3739.4,2.441]
[1753545021808,3.498,3740.4,3739.5,0.9358]
[1753545022005,0.8316,3740.2,3739.0,1.3642559]
[1753545022205,0.498,3740.1,3739.3,0.9358]
[1753545022423,0.55,3740.0,3739.4,0.4785]
[1753545022621,0.55,3740.0,3739.6,2.67404472]
[1753545022794,0.498,3739.9,3739.5,2.67414053]
[1753545022994,0.55,3739.8,3739.7,2.67401128]
[1753545023313,0.8316,3740.2,3739.9,2.67386765]
[1753545023518,0.55,3740.1,3739.9,2.67386765]
[1753545023715,0.55,3740.1,3740.0,2.67379679]
[1753545023892,0.55,3740.1,3739.7,3.54711213]
[1753545023893,2.447,3740.4,3739.7,1.67740142]
[1753545024099,0.2515,3740.6,3740.5,2.67343937]
[1753545024331,0.2515,3740.6,3740.5,3.60923937]
[1753545025132,0.2515,3740.6,3740.4,2.67349764]
[1753545025634,0.2515,3740.6,3740.5,2.67343937]
[1753545025930,0.8253,3740.4,3740.1,5.12065767]
[1753545026094,0.8253,3740.4,3740.1,2.67365767]
[1753545026289,1.3233,3740.4,3740.2,2.447]
[1753545026494,0.2515,3740.6,3740.5,2.67343937]
[1753545027027,0.2515,3740.6,3740.5,3.60923937]
[1753545027894,0.2515,3740.6,3740.5,3.47773937]
[1753545028116,0.2515,3740.6,3740.5,4.41353937]
[1753545028941,0.2515,3740.6,3740.5,6.86153937]
[1753545029254,0.2515,3740.6,3740.5,7.99985663]
[1753545033240,0.2515,3740.6,3740.5,8.00085663]
[1753545034852,0.2515,3740.6,3740.5,6.26075663]
[1753545035428,0.7495,3740.6,3740.5,6.26075663]
[1753545035759,0.7495,3740.6,3740.5,2.80703937]
[1753545036265,0.7495,3740.6,3740.5,2.67343937]
[1753545038289,1.1804,3740.6,3740.5,2.67343937]
[1753545039303,0.7495,3740.6,3740.5,2.67343937]
[1753545039742,0.9309,3740.6,3740.5,2.67343937]
[1753545040478,0.55,3740.5,3740.3,0.1336]
[1753545040643,0.6836,3740.5,3740.2,2.6736447]
[1753545041078,0.9289,3740.4,3740.1,2.67370518]
[1753545041554,0.9289,3740.4,3739.7,1.2593]
[1753545041555,0.55,3740.2,3739.7,2.67395483]
[1753545041757,0.55,3739.8,3739.4,0.1336]
[1753545042056,0.498,3739.7,3739.5,2.67413734]
[1753545042272,0.4946,3739.6,3739.4,2.67421139]
[1753545042456,0.4946,3739.6,3739.5,2.67415429]
[1753545042661,0.55,3739.8,3739.6,2.67402466]
[1753545042857,1.0446,3739.8,3739.6,2.67402466]
[1753545043103,0.4946,3739.7,3739.3,0.1336]
[1753545043278,0.4946,3739.7,3739.5,2.67409071]
[1753545043594,0.55,3739.7,3739.6,2.67408278]
[1753545044751,2.447,3740.1,3739.9,2.67383189]
[1753545044950,0.55,3740.0,3739.9,2.67386828]
[1753545045264,0.55,3740.0,3739.9,3.59646828]
[1753545046081,0.55,3740.2,3740.1,2.6737253]
[1753545046285,2.447,3740.8,3740.2,2.67365381]
[1753545046461,0.1336,3740.4,3740.2,2.67365381]
[1753545046659,0.55,3740.3,3740.2,2.67365381]
[1753545047492,0.55,3740.3,3740.2,3.59625381]
[1753545047981,0.55,3740.3,3739.9,2.80745315]
[1753545048184,0.4946,3740.2,3739.9,2.80745315]
[1753545048400,0.55,3740.3,3740.2,2.67365381]
[1753545048583,0.002,3740.6,3740.3,2.67354918]
[1753545048783,0.55,3740.5,3740.3,2.67354918]
[1753545048989,0.4946,3740.4,3740.3,2.67354918]
[1753545049908,0.4946,3740.4,3740.1,0.1336]
[1753545050109,1.3119,3740.4,3740.0,0.1336]
[1753545050307,0.4489,3740.3,3740.2,2.67365381]
[1753545050489,0.9435,3740.3,3740.2,2.67365381]
[1753545050878,0.4946,3740.3,3740.2,2.67365381]
[1753545052089,0.4946,3740.3,3739.7,0.4648]
[1753545052090,0.55,3740.2,3739.6,0.1336]
[1753545052290,0.6836,3739.8,3739.6,2.67402328]
[1753545052494,0.4946,3739.7,3739.3,0.1336]
[1753545052695,0.9435,3739.7,3739.5,2.67415178]
[1753545052994,0.6836,3739.5,3739.0,0.5914]
[1753545053293,1.0446,3739.4,3739.3,2.67429426]
[1753545053853,0.55,3739.4,3739.3,2.67429426]
[1753545054259,0.55,3739.4,3739.3,3.59689426]
[1753545054995,0.1356,3739.9,3739.8,2.67393978]
[1753545055198,0.002,3739.9,3739.8,3.59653978]
[1753545056576,0.002,3739.9,3739.8,3.13873978]
[1753545056774,0.002,3739.9,3739.8,4.95347702]
[1753545058997,0.002,3739.9,3739.8,7.40147702]
[1753545061497,0.002,3740.6,3740.5,2.67343937]
[1753545061876,0.002,3740.6,3740.5,6.17663937]
[1753545063180,0.2495,3740.9,3740.8,2.67322497]
[1753545063365,1e-08,3740.9,3740.8,11.67887387]
[1753545063568,1e-08,3740.9,3740.8,12.60147387]
[1753545064068,1e-08,3740.9,3740.8,15.60147387]
[1753545064264,0.10458324,3743.2,3742.1,2.6722963]
[1753545064575,0.10458324,3743.2,3742.0,0.7745]
[1753545064576,0.1336,3742.9,3742.7,2.67184975]
[1753545064775,0.1336,3742.9,3742.4,0.1336]
[1753545064982,0.1336,3742.9,3742.8,2.67179651]
[1753545065567,0.55,3742.8,3742.7,2.67185806]
[1753545065768,0.55,3742.8,3742.5,2.67194759]
[1753545065968,0.55,3742.8,3742.6,2.6718961]
[1753545066216,0.50431951,3743.2,3742.6,2.449]
[1753545066399,0.50431951,3743.2,3741.5,2.67270452]
[1753545066400,0.4946,3743.1,3742.8,0.1336]
[1753545067193,0.10458324,3743.2,3742.8,0.1336]
[1753545067399,0.10458324,3743.2,3742.9,2.45]
[1753545067628,0.10458324,3743.2,3743.1,2.67158237]
[1753545067830,0.10458324,3743.2,3743.1,2.80518237]
[1753545068029,0.10458324,3743.2,3743.1,5.25518237]
[1753545068195,0.10458324,3743.2,3743.1,6.17778237]
[1753545068592,0.10458324,3743.2,3743.1,5.25618237]
[1753545068929,1e-08,3743.2,3743.1,6.81136866]
[1753545069129,1e-08,3743.2,3743.1,8.14936866]
[1753545069330,1e-08,3743.2,3743.1,7.61036866]
[1753545069630,1e-08,3743.2,3743.1,0.7624]
[1753545069817,1e-08,3743.2,3743.1,2.464]
[1753545070023,1e-08,3743.2,3742.7,1.2202]
[1753545070329,0.9435,3743.1,3742.4,0.7624]
[1753545070501,0.9435,3743.1,3742.5,2.465]
[1753545070502,1.2891,3743.0,3742.5,2.465]
[1753545070701,0.4946,3742.9,3742.0,0.7624]
[1753545070937,1.2891,3743.0,3742.1,2.465]
[1753545071127,1.2891,3743.0,3742.5,2.67198474]
[1753545071332,1.2891,3743.0,3742.2,2.465]
[1753545071532,1.2891,3743.0,3742.1,0.4578]
[1753545071533,0.55,3742.8,3742.0,0.7624]
[1753545071715,0.7945,3742.2,3741.3,2.67280782]
[1753545071898,1.4935,3742.1,3740.9,1.2272]
[1753545072094,0.4946,3742.0,3741.2,2.67291171]
[1753545072400,0.55,3741.9,3741.1,2.67301061]
[1753545072633,2.67265341,3741.6,3740.7,2.67327312]
[1753545072931,0.55,3741.3,3740.7,2.67329027]
[1753545073139,0.55,3741.3,3740.6,5.14433532]
[1753545073299,0.93081173,3741.2,3740.6,3.25279078]
[1753545073494,0.455,3741.1,3740.6,0.78179078]
[1753545073721,0.455,3741.0,3740.6,3.45512766]
[1753545073922,0.455,3740.9,3740.6,3.45512766]
[1753545074236,1.005,3741.6,3740.8,2.67322497]
[1753545074534,0.48840906,3741.5,3740.8,2.67321326]
[1753545075667,0.7989,3741.8,3741.2,2.67293118]
[1753545075865,0.55,3741.7,3741.1,2.67300625]
[1753545076243,0.55,3741.7,3741.0,2.67307317]
[1753545076430,0.455,3741.6,3741.0,2.67307317]
[1753545076765,0.455,3741.6,3741.1,2.6729982]
[1753545077124,0.002,3741.5,3741.1,2.6729982]
[1753545077528,0.002,3741.5,3741.0,3.33366999]
[1753545077727,0.002,3741.5,3741.0,3.33361331]
[1753545077967,0.457,3741.5,3741.0,3.33361331]
[1753545078172,0.455,3741.4,3741.1,2.67300511]
[1753545078339,0.455,3741.4,3741.0,3.33367102]
[1753545078538,0.455,3741.4,3741.0,3.33367872]
[1753545078740,0.455,3741.4,3741.0,0.66059937]
[1753545079064,0.455,3741.4,3741.1,2.80660692]
[1753545079234,0.455,3741.4,3741.1,0.1336]
[1753545079867,0.002,3741.5,3741.1,0.1336]
[1753545080249,0.002,3741.5,3741.1,2.80660733]
[1753545080651,0.457,3741.5,3741.1,0.1336]
[1753545080995,0.457,3741.5,3741.2,2.67290979]
[1753545081170,0.002,3741.5,3741.3,2.67285723]
[1753545081471,0.002,3741.5,3741.1,1.0478]
[1753545081472,0.002,3741.5,3741.2,2.67292808]
[1753545081669,0.002,3741.5,3741.1,3.72080255]
[1753545081871,0.002,3741.5,3741.2,2.67293895]
[1753545082166,0.002,3741.5,3741.3,2.67286505]
[1753545082748,0.002,3741.5,3741.2,3.58712199]
[1753545082952,0.002,3741.5,3741.1,0.1336]
[1753545083367,0.455,3741.4,3741.1,0.1336]
[1753545083876,0.002,3741.5,3741.1,0.1336]
[1753545084175,0.455,3741.4,3741.1,0.1336]
[1753545084350,0.002,3741.5,3741.2,2.67287535]
[1753545084542,0.457,3741.5,3741.1,2.80660561]
[1753545084943,0.457,3741.5,3741.2,2.67293758]
[1753545085367,0.002,3741.5,3741.2,2.67293758]
[1753545087168,2.467,3741.5,3741.2,2.67293758]
[1753545087477,2.467,3741.5,3741.1,0.1336]
[1753545087681,0.455,3741.4,3741.1,2.8065931]
[1753545087862,0.455,3741.4,3741.2,2.67293726]
[1753545088066,2.467,3741.5,3741.2,2.67293726]
[1753545088261,2.467,3741.5,3741.1,0.1336]
[1753545088490,0.002,3741.5,3741.2,2.67288833]
[1753545088674,0.002,3741.5,3741.1,1.0478]
[1753545088675,0.002,3741.5,3741.3,0.9142]
[1753545088857,0.002,3741.5,3741.4,2.67279627]
[1753545089391,0.002,3741.5,3740.8,2.67322044]
[1753545089392,1.007,3741.5,3741.0,2.67301536]
[1753545089549,0.5886,3741.4,3741.0,2.67301536]
[1753545089745,0.5886,3741.4,3740.9,2.80673325]
[1753545089746,0.55,3741.3,3740.9,2.80673325]
[1753545089957,0.552,3741.5,3740.7,0.1336]
[1753545089958,0.5886,3741.2,3740.7,0.1336]
[1753545090158,0.1336,3741.2,3740.8,0.9142]
[1753545090477,0.6836,3741.2,3741.1,2.67301061]
[1753545090697,2.464,3741.4,3741.1,3.13461061]
[1753545090991,2.464,3741.4,3741.1,3.58721061]
[1753545091757,2.464,3741.4,3741.1,2.6729603]
[1753545091957,2.464,3741.4,3741.0,0.1336]
[1753545092177,1.464,3741.4,3741.2,2.67293916]
[1753545092390,1.464,3741.4,3741.3,2.67286771]
[1753545092564,1.464,3741.4,3741.3,3.58706771]
[1753545092760,0.1356,3741.5,3741.4,2.67279627]
[1753545093064,2.466,3741.5,3741.4,3.58699627]
[1753545093452,0.002,3741.5,3741.4,4.30398963]
[1753545093691,0.002,3741.5,3741.4,4.43758963]
[1753545094159,0.002,3741.5,3741.4,5.18968963]
[1753545098357,0.002,3741.5,3741.4,3.52338963]
[1753545098561,0.002,3741.5,3741.4,5.24548963]
[1753545098766,0.002,3741.5,3741.4,4.43758963]
[1753545099091,0.002,3741.5,3741.4,3.52338963]
[1753545100374,0.002,3741.5,3741.4,0.1336]
[1753545100690,1.6828,3741.5,3741.2,2.80652532]
[1753545100893,0.455,3741.4,3741.3,2.67286095]
[1753545102398,1.4171,3741.4,3740.9,2.67312461]
[1753545102596,0.4958,3741.3,3740.9,2.67312461]
[1753545102898,0.4958,3741.3,3740.8,2.80781942]
[1753545103063,0.55,3741.3,3740.8,2.80781942]
[1753545103265,0.4958,3741.2,3740.9,2.67314283]
[1753545103701,0.4958,3741.2,3740.9,2.67315351]
[1753545111622,0.55,3741.3,3740.9,3.13105351]
[1753545111788,1.0458,3741.3,3740.9,3.13105351]
[1753545112418,1.0458,3741.3,3741.0,2.67307104]
[1753545112912,0.5457,3741.4,3740.9,3.13103454]
[1753545113114,0.4958,3741.2,3741.0,2.67305926]
[1753545113278,0.4958,3741.2,3740.9,3.13104211]
[1753545113713,0.4958,3741.2,3741.0,2.67307112]
[1753545115813,0.55,3741.3,3741.0,2.67307112]
[1753545116013,1.0458,3741.3,3741.0,2.67306755]
[1753545116318,2.459,3741.2,3741.0,2.67306755]
[1753545116788,2.459,3741.2,3740.9,3.13103454]
[1753545117314,1.0458,3741.3,3741.0,2.6730677]
[1753545117495,2.459,3741.2,3741.0,2.6730677]
[1753545119411,2.459,3741.2,3741.1,2.67301061]
[1753545120135,0.55,3741.3,3741.1,2.67301061]
[1753545120361,0.002,3741.5,3740.8,0.4371]
[1753545120518,2.457,3741.3,3741.2,3.56693916]
[1753545122034,0.002,3741.5,3741.4,2.67279627]
[1753545122224,2.459,3741.5,3741.4,2.67279627]
[1753545122547,2.459,3741.5,3741.4,3.13069627]
[1753545123125,2.459,3741.5,3741.4,2.67279627]
[1753545123702,2.459,3741.5,3741.4,3.56679627]
[1753545125538,2.459,3741.5,3741.4,3.13069627]
[1753545126038,2.459,3741.5,3741.2,3.10903916]
[1753545126039,2.459,3741.5,3741.2,3.56693916]
[1753545126248,2.459,3741.5,3741.2,2.67293916]
[1753545126458,0.4958,3741.4,3741.3,2.67286771]
[1753545126617,0.4958,3741.4,3741.2,2.67292663]
[1753545126949,0.55,3741.2,3740.9,0.001]
[1753545127266,0.58341173,3741.2,3740.9,0.001]
[1753545127472,0.4958,3741.1,3740.9,0.001]
[1753545127617,2.455,3741.0,3740.9,0.001]
[1753545127949,8.26883469,3741.0,3740.9,0.001]
[1753545128267,8.23542117,3741.0,3740.9,0.001]
[1753545129322,7.8379,3741.0,3740.9,0.001]
[1753545129816,7.3969,3741.0,3740.9,0.001]
[1753545130413,7.8379,3741.0,3740.9,0.001]
[1753545132338,7.3969,3741.0,3740.9,0.001]
[1753545132538,6.9011,3741.0,3740.9,0.001]
[1753545132868,7.8379,3741.0,3740.9,0.001]
[1753545135371,6.9011,3741.0,3740.9,0.001]
[1753545135583,7.8379,3741.0,3740.9,0.001]
[1753545135930,10.51098206,3741.0,3740.9,0.001]
[1753545136233,40.51098206,3741.0,3740.9,0.001]
[1753545141358,37.50598206,3741.0,3740.9,0.001]
[1753545141556,39.49478206,3741.0,3740.9,0.001]
[1753545141840,39.28228206,3741.0,3740.9,0.001]
[1753545142050,40.08558206,3741.0,3740.9,0.001]
[1753545142258,40.55078206,3741.0,3740.9,0.001]
[1753545143277,40.41718206,3741.0,3740.9,0.001]
[1753545144543,39.95198206,3741.0,3740.9,0.001]
[1753545146366,39.95098206,3741.0,3740.9,0.001]
[1753545146571,9.95098206,3741.0,3740.9,0.001]
[1753545146755,39.95098206,3741.0,3740.9,0.001]
[1753545147885,39.94998206,3741.0,3740.9,0.001]
[1753545148479,39.47838206,3741.0,3740.9,0.001]
[1753545148776,9.47838206,3741.0,3740.9,0.001]
[1753545149546,7.02638206,3741.0,3740.9,0.001]
[1753545149759,9.47738206,3741.0,3740.9,0.001]
[1753545150257,9.94898206,3741.0,3740.9,0.001]
[1753545150666,39.94898206,3741.0,3740.9,0.001]
[1753545150865,40.41418206,3741.0,3740.9,0.001]
[1753545152679,10.41418206,3741.0,3740.9,0.001]
[1753545152857,40.41418206,3741.0,3740.9,0.001]
[1753545153060,40.54778206,3741.0,3740.9,0.001]
[1753545158907,36.60998206,3741.0,3740.9,0.001]
[1753545159110,39.05898206,3741.0,3740.9,0.001]
[1753545159309,36.60998206,3741.0,3740.9,0.001]
[1753545159514,32.80668206,3741.0,3740.9,0.9501]
[1753545159713,33.35668206,3741.0,3740.9,0.9501]
[1753545159878,33.1336,3741.0,3740.9,0.9501]
[1753545160068,35.5826,3741.0,3740.9,0.9501]
[1753545160270,36.1326,3741.0,3740.9,0.9501]
[1753545160528,36.1336,3741.0,3740.9,0.9501]
[1753545161621,6.1336,3741.0,3740.9,0.9501]
[1753545163874,3.1336,3741.0,3740.9,1.12433]
[1753545165873,6.1336,3741.0,3740.9,1.12433]
[1753545166087,6.1336,3741.0,3740.9,0.9501]
[1753545168390,6.1336,3741.0,3740.9,3.62325351]
[1753545169012,6.1316,3741.0,3740.9,3.62325351]
[1753545169207,5.448,3741.0,3740.9,3.62325351]
[1753545169701,3.0,3741.0,3740.9,4.41055351]
[1753545170018,0.002,3741.4,3741.3,2.67286771]
[1753545170186,2.452,3741.4,3741.3,2.67286771]
[1753545170393,2.452,3741.4,3741.3,3.58946771]
[1753545171286,2.452,3741.4,3741.3,4.35866771]
[1753545172821,2.452,3741.4,3741.3,1.2514]
[1753545173323,0.55,3741.3,3741.0,3.44226872]
[1753545173523,0.55,3741.3,3741.1,0.46005113]
[1753545173524,2.449,3741.2,3741.1,0.46005113]
[1753545173822,2.449,3741.2,3741.1,1.37665113]
[1753545175019,2.449,3741.2,3741.1,4.04966174]
[1753545175330,0.002,3741.4,3741.3,2.67286771]